bitfinex/quotes_BTCUSD_20240718
["timestamp","ask_amount","ask_price","bid_price","bid_amount"]
[1721319793575,2.80143809,63696.0,63695.0,0.00967387]
[1721319793781,2.7510593,63696.0,63695.0,0.00967387]
[1721319794196,2.77563373,63696.0,63695.0,0.00967387]
[1721319794399,2.7510593,63696.0,63695.0,0.00967387]
[1721319794821,3.4197741,63696.0,63695.0,0.00967387]
[1721319796318,3.55931907,63696.0,63695.0,0.00755027]
[1721319796531,3.4197741,63696.0,63695.0,0.00755027]
[1721319797784,0.75,63688.0,63687.0,4e-07]
[1721319797998,0.521067,63685.0,63677.0,0.009163]
[1721319798211,0.207042,63677.0,63661.0,0.00769219]
[1721319798414,1.463405,63676.0,63661.0,0.00769219]
[1721319798642,2.17547912,63676.0,63661.0,0.00769219]
[1721319799071,2.54483532,63676.0,63661.0,0.00769219]
[1721319799281,2.63024286,63676.0,63661.0,0.00769219]
[1721319799490,2.66907554,63676.0,63661.0,0.00769219]
[1721319799709,2.72303767,63676.0,63661.0,0.00769219]
[1721319800166,2.72303767,63676.0,63666.0,6.3e-07]
[1721319800167,0.207067,63667.0,63666.0,6.3e-07]
[1721319800377,1.52557559,63667.0,63666.0,6.3e-07]
[1721319800592,2.14319152,63667.0,63666.0,6.3e-07]
[1721319800812,2.77145952,63667.0,63666.0,6.3e-07]
[1721319801699,2.78545952,63667.0,63666.0,6.3e-07]
[1721319801903,2.79945952,63667.0,63666.0,6.3e-07]
[1721319802109,2.80037485,63667.0,63666.0,6.3e-07]
[1721319802783,2.80037485,63667.0,63666.0,0.13590063]
[1721319802784,2.52337485,63667.0,63666.0,0.13590063]
[1721319802993,1.441603,63667.0,63666.0,0.13590063]
[1721319803216,1.441603,63667.0,63666.0,6.3e-07]
[1721319803874,1.427603,63667.0,63666.0,6.3e-07]
[1721319804085,1.413603,63667.0,63666.0,6.3e-07]
[1721319804293,1.427603,63667.0,63666.0,6.3e-07]
[1721319804500,1.541603,63667.0,63666.0,6.3e-07]
[1721319804635,1.213469,63667.0,63666.0,6.3e-07]
[1721319804842,1.199469,63667.0,63666.0,6.3e-07]
[1721319805062,1.227469,63667.0,63666.0,6.3e-07]
[1721319805276,1.213469,63667.0,63666.0,6.3e-07]
[1721319805683,1.227469,63667.0,63666.0,6.3e-07]
[1721319806540,1.213469,63667.0,63666.0,6.3e-07]
[1721319807509,1.213469,63667.0,63666.0,0.00091363]
[1721319808124,1.199469,63667.0,63666.0,0.00091363]
[1721319808344,1.213469,63667.0,63666.0,0.00091363]
[1721319808556,1.227469,63667.0,63666.0,0.00091363]
[1721319809804,1.727469,63667.0,63666.0,0.00091363]
[1721319810004,2.041603,63667.0,63666.0,0.00091363]
[1721319810217,1.713469,63667.0,63666.0,0.00091363]
[1721319810613,2.041603,63667.0,63666.0,0.00091363]
[1721319810826,2.027603,63667.0,63666.0,0.00091363]
[1721319811193,1.727469,63667.0,63666.0,0.00091363]
[1721319811653,0.185067,63667.0,63666.0,0.00091363]
[1721319811947,0.499201,63667.0,63666.0,0.14381363]
[1721319812502,0.799335,63667.0,63666.0,0.14381363]
[1721319812707,0.15706,63670.0,63666.0,0.15946551]
[1721319812911,0.314111,63672.0,63666.0,0.15946551]
[1721319812912,0.157062,63669.0,63666.0,0.15946551]
[1721319813122,0.014,63667.0,63666.0,0.15946551]
[1721319813521,0.157059,63670.0,63666.0,0.15946551]
[1721319813723,0.314118,63671.0,63667.0,0.15438174]
[1721319813948,0.004,63670.0,63669.0,0.296561]
[1721319814165,0.004,63670.0,63669.0,0.76506674]
[1721319814422,0.004,63670.0,63669.0,0.87239636]
[1721319814625,0.4769,63680.0,63670.0,0.1395]
[1721319814828,0.005,63670.0,63669.0,0.89263962]
[1721319815189,0.005,63670.0,63669.0,1.18572136]
[1721319815640,0.005,63670.0,63669.0,1.20872136]
[1721319815967,0.005,63670.0,63669.0,1.07002136]
[1721319816176,0.005,63670.0,63669.0,1.20752136]
[1721319817015,0.006,63670.0,63669.0,1.20752136]
[1721319817762,0.006,63670.0,63669.0,1.52164536]
[1721319817969,0.001,63670.0,63669.0,1.57164536]
[1721319818386,0.46304871,63689.0,63685.0,0.1375]
[1721319818598,0.46304871,63689.0,63688.0,0.157015]
[1721319818800,0.157003,63693.0,63687.0,0.157017]
[1721319819136,0.314001,63694.0,63688.0,0.002794]
[1721319819335,0.314008,63693.0,63688.0,0.002794]
[1721319819540,0.157012,63690.0,63689.0,0.03084257]
[1721319820362,0.313996,63695.0,63689.0,0.03084257]
[1721319820539,0.313996,63695.0,63690.0,0.002794]
[1721319820742,0.157005,63693.0,63689.0,0.03084257]
[1721319821157,0.157005,63692.0,63689.0,0.03084257]
[1721319822066,0.011,63694.0,63690.0,0.20383087]
[1721319822276,0.01,63693.0,63692.0,0.47381]
[1721319822481,0.01,63693.0,63692.0,0.70739774]
[1721319822647,0.01,63693.0,63692.0,0.79279668]
[1721319823060,0.00083,63696.0,63693.0,0.157001]
[1721319823267,0.00083,63696.0,63695.0,0.002794]
[1721319823798,0.00083,63696.0,63695.0,0.15438174]
[1721319824429,0.00083,63696.0,63695.0,0.31137974]
[1721319824562,0.00083,63696.0,63695.0,0.43413552]
[1721319825396,0.00083,63696.0,63695.0,0.27713752]
[1721319826003,0.00083,63696.0,63695.0,0.43413552]
[1721319826201,0.00083,63696.0,63695.0,0.43713552]
[1721319827301,0.00083,63696.0,63695.0,0.28213752]
[1721319827918,0.00083,63696.0,63695.0,0.15938174]
[1721319828137,0.00083,63696.0,63695.0,0.005]
[1721319828138,0.471816,63696.0,63695.0,0.005]
[1721319828810,0.471816,63696.0,63695.0,0.002]
[1721319829046,0.471009,63693.0,63692.0,0.082]
[1721319829232,0.00583,63696.0,63686.0,0.1406]
[1721319829434,0.471052,63687.0,63686.0,0.0609]
[1721319829635,0.471052,63687.0,63682.0,0.0609]
[1721319829636,0.157028,63683.0,63682.0,0.0609]
[1721319829838,0.157028,63683.0,63682.0,0.21528174]
[1721319830036,0.314021,63690.0,63679.0,0.0609]
[1721319830208,0.314088,63677.0,63671.0,0.1437]
[1721319830617,0.17717479,63689.0,63672.0,0.15438174]
[1721319830618,0.471156,63673.0,63672.0,0.15438174]
[1721319830822,0.0617,63685.0,63666.0,0.00091363]
[1721319830823,0.157067,63667.0,63666.0,0.00091363]
[1721319831026,0.471201,63667.0,63666.0,0.15529537]
[1721319831231,0.157067,63667.0,63666.0,0.15529537]
[1721319831430,0.157067,63667.0,63666.0,0.18646543]
[1721319831653,0.785335,63667.0,63666.0,0.00091363]
[1721319831856,0.471201,63667.0,63666.0,0.00091363]
[1721319832062,0.314086,63677.0,63666.0,0.15529537]
[1721319832271,0.314103,63674.0,63667.0,0.03811832]
[1721319832488,0.0751,63686.0,63671.0,0.157056]
[1721319832489,0.157042,63677.0,63671.0,0.157056]
[1721319832691,0.314076,63679.0,63672.0,0.15717574]
[1721319832692,0.157047,63675.0,63672.0,0.15717574]
[1721319832898,0.157047,63675.0,63672.0,0.15438174]
[1721319833104,0.314076,63679.0,63673.0,0.145094]
[1721319833310,0.157049,63675.0,63674.0,0.04596746]
[1721319833521,0.157047,63675.0,63674.0,0.04596746]
[1721319834057,0.157046,63676.0,63674.0,0.04596746]
[1721319834688,0.314059,63683.0,63674.0,0.04596746]
[1721319834689,0.314065,63681.0,63674.0,0.27852399]
[1721319834888,0.314059,63683.0,63675.0,0.15438174]
[1721319834889,0.257036,63680.0,63675.0,0.15438174]
[1721319835097,0.1,63680.0,63676.0,0.089198]
[1721319835301,0.314053,63684.0,63677.0,0.31142374]
[1721319835503,0.1,63683.0,63678.0,0.002794]
[1721319835699,0.15703,63683.0,63678.0,0.15717574]
[1721319835916,0.007,63681.0,63679.0,0.0978458]
[1721319836116,0.007,63681.0,63680.0,0.30227574]
[1721319836325,0.007,63681.0,63680.0,0.99758674]
[1721319836574,0.007,63681.0,63680.0,0.54948174]
[1721319837204,0.007,63681.0,63680.0,0.70651674]
[1721319837404,0.013,63681.0,63680.0,0.62386909]
[1721319837577,0.013,63681.0,63680.0,0.46683409]
[1721319837778,0.013,63681.0,63680.0,0.62386909]
[1721319837980,0.157021,63686.0,63680.0,0.62286909]
[1721319838184,0.157017,63687.0,63681.0,0.182825]
[1721319838366,0.157017,63688.0,63682.0,0.41576883]
[1721319838558,0.157019,63687.0,63683.0,0.002794]
[1721319838787,0.15702,63686.0,63684.0,0.15438174]
[1721319839396,0.15702,63686.0,63685.0,0.002794]
[1721319839596,0.15702,63686.0,63685.0,0.15717574]
[1721319839827,0.15702,63686.0,63685.0,0.15438174]
[1721319840438,0.314031,63688.0,63680.0,0.1451]
[1721319840645,0.157024,63685.0,63681.0,0.18147032]
[1721319841255,0.471067,63685.0,63684.0,0.003]
[1721319841459,0.785112,63685.0,63684.0,0.15738174]
[1721319842779,0.157022,63685.0,63684.0,0.18705937]
[1721319843163,0.159022,63685.0,63684.0,0.18705937]
[1721319843358,0.002,63685.0,63684.0,0.66127471]
[1721319843567,0.002,63685.0,63684.0,0.34408437]
[1721319843776,0.004,63685.0,63684.0,0.41008437]
[1721319843981,0.004,63685.0,63684.0,0.25305937]
[1721319844206,0.002,63685.0,63684.0,0.25305937]
[1721319844418,0.157013,63689.0,63684.0,0.25305937]
[1721319844635,0.157013,63689.0,63685.0,0.29200668]
[1721319846113,0.157013,63689.0,63685.0,0.29400668]
[1721319846514,0.157013,63689.0,63685.0,0.29200668]
[1721319846776,0.157011,63690.0,63685.0,0.29200668]
[1721319846947,0.157013,63689.0,63686.0,0.08677643]
[1721319847204,0.157012,63690.0,63687.0,0.15717574]
[1721319847604,0.157013,63689.0,63687.0,0.15717574]
[1721319847809,0.157013,63689.0,63687.0,0.21247683]
[1721319848091,0.157015,63688.0,63687.0,0.20968283]
[1721319848405,0.157015,63688.0,63687.0,0.21068283]
[1721319848853,0.471045,63688.0,63687.0,0.21068283]
[1721319849009,1.099105,63688.0,63687.0,0.003]
[1721319849219,1.099105,63688.0,63685.0,0.001]
[1721319849220,0.7851,63686.0,63685.0,0.001]
[1721319849448,1.28063438,63686.0,63685.0,0.001]
[1721319849651,0.157057,63671.0,63670.0,0.067013]
[1721319849875,0.471171,63671.0,63670.0,0.2518344]
[1721319850326,0.157057,63671.0,63670.0,0.2518344]
[1721319850894,0.157055,63672.0,63670.0,0.2518344]
[1721319851096,0.157055,63672.0,63671.0,0.15438174]
[1721319851430,0.314102,63674.0,63671.0,0.15438174]
[1721319851431,0.15705,63674.0,63671.0,0.25741694]
[1721319851870,0.157054,63672.0,63671.0,0.25741694]
[1721319852097,0.314098,63675.0,63671.0,0.25741694]
[1721319852312,0.15705,63674.0,63671.0,0.25741694]
[1721319852510,0.001,63672.0,63671.0,0.26441694]
[1721319854233,0.002,63672.0,63671.0,0.27041694]
[1721319854871,0.001,63672.0,63671.0,0.73772884]
[1721319855076,0.001,63672.0,63671.0,1.05184284]
[1721319855694,0.001,63672.0,63671.0,1.53505684]
[1721319856313,0.001,63672.0,63671.0,1.58505684]
[1721319856522,0.001,63672.0,63671.0,1.59205684]
[1721319856728,0.22676411,63689.0,63671.0,1.59205684]
[1721319856729,0.04656181,63689.0,63679.0,0.064]
[1721319856993,0.04656181,63690.0,63687.0,0.157016]
[1721319857222,0.04656181,63690.0,63688.0,0.15438174]
[1721319857599,0.25012662,63693.0,63688.0,0.15438174]
[1721319857600,0.04656181,63689.0,63688.0,0.15438174]
[1721319857977,0.05456181,63689.0,63688.0,0.15438174]
[1721319858181,0.05456181,63689.0,63688.0,0.27103091]
[1721319858382,0.04656181,63689.0,63688.0,0.42804591]
[1721319858559,0.06984271,63690.0,63688.0,0.42804591]
[1721319858766,0.04660008,63689.0,63688.0,0.43004591]
[1721319858970,0.04660008,63689.0,63688.0,0.74607591]
[1721319859414,0.06984271,63690.0,63689.0,0.157012]
[1721319859611,0.11640452,63694.0,63689.0,0.63435077]
[1721319859612,0.04661585,63692.0,63689.0,0.63435077]
[1721319859814,0.06984271,63694.0,63690.0,0.31138974]
[1721319859815,0.04660821,63694.0,63690.0,0.31138974]
[1721319860041,0.04660821,63692.0,63690.0,0.15438174]
[1721319860213,0.06991232,63692.0,63690.0,0.15438174]
[1721319860415,0.06991232,63691.0,63690.0,0.15438174]
[1721319860678,0.06991232,63691.0,63690.0,0.25447805]
[1721319860864,0.09321643,63693.0,63690.0,0.25447805]
[1721319860865,0.06991232,63692.0,63690.0,0.25447805]
[1721319861439,0.06991232,63691.0,63690.0,0.25447805]
[1721319861647,0.06991232,63691.0,63684.0,0.0635]
[1721319861874,0.06991232,63691.0,63680.0,0.333787]
[1721319861875,0.04661076,63687.0,63685.0,0.15438174]
[1721319862095,0.0466098,63686.0,63685.0,0.15438174]
[1721319862296,0.06991232,63687.0,63685.0,0.22525121]
[1721319862528,0.22693232,63687.0,63685.0,0.22525121]
[1721319862696,0.04661061,63686.0,63685.0,0.22525121]
[1721319862921,0.06991232,63688.0,63685.0,0.22525121]
[1721319862922,0.04661286,63687.0,63685.0,0.22525121]
[1721319863323,0.04661286,63686.0,63685.0,0.22525121]
[1721319865252,0.04661286,63686.0,63685.0,0.22625121]
[1721319865463,0.15702,63686.0,63685.0,0.15538174]
[1721319865676,0.56428573,63686.0,63685.0,0.15438174]
[1721319865896,0.56428573,63686.0,63671.0,0.023]
[1721319865897,0.0649,63682.0,63670.0,0.000913]
[1721319866108,0.04660892,63677.0,63671.0,0.2273184]
[1721319866312,0.04660892,63676.0,63671.0,0.2273184]
[1721319866515,0.20365492,63676.0,63671.0,0.2273184]
[1721319866727,0.04660892,63676.0,63672.0,0.10058854]
[1721319866922,0.04660892,63676.0,63673.0,0.15438174]
[1721319867331,0.157043,63677.0,63673.0,0.15438174]
[1721319867734,0.20364992,63678.0,63673.0,0.15438174]
[1721319867939,0.04660892,63678.0,63676.0,0.23421879]
[1721319868141,0.04660892,63679.0,63677.0,0.22600065]
[1721319868367,0.04660892,63680.0,63677.0,0.22600065]
[1721319868558,0.04660892,63679.0,63678.0,0.61272]
[1721319868769,0.04660892,63682.0,63681.0,0.157032]
[1721319868966,0.06988601,63684.0,63682.0,0.157029]
[1721319869171,0.06988601,63684.0,63683.0,0.30063599]
[1721319869380,0.09318135,63685.0,63683.0,0.30063599]
[1721319869789,0.06988568,63684.0,63683.0,0.30063599]
[1721319870030,0.09318135,63685.0,63683.0,0.30063599]
[1721319870231,0.09318135,63685.0,63684.0,0.0771735]
[1721319870611,0.09318135,63685.0,63684.0,0.23155524]
[1721319872051,0.09717576,63685.0,63684.0,0.38858024]
[1721319872436,0.004,63685.0,63684.0,0.23155524]
[1721319872637,0.314064,63682.0,63669.0,0.2878]
[1721319872838,0.04659686,63678.0,63672.0,0.314107]
[1721319873045,0.0698953,63680.0,63674.0,0.157048]
[1721319873046,0.04659686,63677.0,63674.0,0.157048]
[1721319873250,0.04659686,63678.0,63675.0,0.31142774]
[1721319873492,0.04659686,63677.0,63675.0,0.31142774]
[1721319873697,0.04659686,63676.0,63675.0,0.31142774]
[1721319874039,0.04659686,63677.0,63675.0,0.31142774]
[1721319874428,0.04659686,63677.0,63675.0,0.31542774]
[1721319874838,0.04659686,63677.0,63675.0,0.31142774]
[1721319875034,0.157035,63680.0,63675.0,0.31142774]
[1721319875244,0.04661397,63677.0,63676.0,0.07027095]
[1721319875634,0.04661397,63677.0,63676.0,0.38169769]
[1721319875841,0.04661397,63678.0,63677.0,0.471127]
[1721319876013,0.04661397,63679.0,63678.0,0.47112]
[1721319876230,0.06992095,63680.0,63679.0,0.471112]
[1721319876231,0.04661397,63680.0,63679.0,0.471112]
[1721319876356,0.04661397,63680.0,63679.0,0.76913706]
[1721319876552,0.04661397,63680.0,63679.0,1.08321206]
[1721319877413,0.09405794,63684.0,63680.0,0.471105]
[1721319877414,0.06992095,63681.0,63680.0,0.471105]
[1721319877625,0.06992095,63681.0,63680.0,0.62548674]
[1721319877833,0.06992095,63681.0,63680.0,0.77983631]
[1721319878067,0.06992095,63681.0,63680.0,0.30873131]
[1721319878276,0.09332027,63682.0,63680.0,0.30873131]
[1721319878493,0.11748034,63684.0,63680.0,0.15438174]
[1721319878494,0.09332027,63681.0,63680.0,0.15438174]
[1721319878917,0.09432027,63681.0,63680.0,0.16238174]
[1721319879139,0.001,63681.0,63680.0,0.16238174]
[1721319879345,0.001,63681.0,63680.0,0.28669031]
[1721319879346,0.09432027,63681.0,63680.0,0.28669031]
[1721319879827,0.09432027,63681.0,63670.0,0.000913]
[1721319879828,0.314087,63677.0,63670.0,0.000913]
[1721319880040,0.04664386,63673.0,63672.0,0.15529474]
[1721319880249,0.2270128,63675.0,63672.0,0.15529474]
[1721319880250,0.0699658,63674.0,63672.0,0.15529474]
[1721319880450,0.25033473,63675.0,63673.0,0.06938917]
[1721319881611,0.25133473,63675.0,63673.0,0.07638917]
[1721319882246,0.25233473,63675.0,63673.0,0.08238917]
[1721319882445,0.22701117,63674.0,63673.0,0.08238917]
[1721319883225,0.06996217,63674.0,63673.0,0.08238917]
[1721319883873,0.22701117,63674.0,63673.0,0.08238917]
[1721319884085,0.785247,63674.0,63673.0,0.006]
[1721319884313,0.90283654,63674.0,63673.0,0.014]
[1721319884488,0.786247,63674.0,63673.0,0.014]
[1721319884742,0.786247,63674.0,63673.0,0.008]
[1721319884960,0.786247,63674.0,63673.0,0.016]
[1721319885187,0.786247,63674.0,63673.0,0.008]
[1721319885404,0.78526,63673.0,63672.0,0.000913]
[1721319885620,1.49421792,63673.0,63672.0,0.000913]
[1721319885826,1.77955378,63673.0,63672.0,0.000913]
[1721319886252,1.93393552,63673.0,63672.0,0.000913]
[1721319886682,2.09114456,63673.0,63672.0,0.000913]
[1721319887501,2.09114456,63673.0,63672.0,0.001913]
[1721319887502,2.08174175,63673.0,63672.0,0.001913]
[1721319887708,1.92452846,63673.0,63672.0,0.001913]
[1721319887928,1.92352846,63673.0,63672.0,0.001913]
[1721319888334,1.92452846,63673.0,63672.0,0.001913]
[1721319888694,1.45604272,63673.0,63672.0,0.001913]
[1721319889057,1.46504272,63673.0,63672.0,0.002913]
[1721319889484,1.46504272,63673.0,63672.0,0.001913]
[1721319889691,1.77914672,63673.0,63672.0,0.002913]
[1721319890535,1.78812633,63673.0,63672.0,0.002913]
[1721319890923,1.78795914,63673.0,63672.0,0.002913]
[1721319891351,1.99234088,63673.0,63672.0,0.002913]
[1721319892071,1.94234088,63673.0,63672.0,0.002913]
[1721319893243,1.78795914,63673.0,63672.0,0.002913]
[1721319893584,1.58974644,63673.0,63672.0,0.002913]
[1721319893780,1.4502941,63673.0,63672.0,0.002913]
[1721319896577,1.39304088,63673.0,63672.0,0.002913]
[1721319896796,1.44973196,63673.0,63672.0,0.002913]
[1721319897278,2.4682177,63673.0,63672.0,0.002913]
[1721319897483,2.4745107,63673.0,63672.0,0.002913]
[1721319897703,2.56621776,63673.0,63672.0,0.002913]
[1721319898336,2.88032176,63673.0,63672.0,0.002913]
[1721319899204,2.7386147,63673.0,63672.0,0.002913]
[1721319899401,2.56379383,63673.0,63672.0,0.002913]
[1721319899864,2.56448099,63673.0,63672.0,0.002913]
[1721319900058,2.42520066,63673.0,63672.0,0.002913]
[1721319900421,2.47520066,63673.0,63672.0,0.002913]
[1721319900827,2.61448099,63673.0,63672.0,0.002913]
[1721319901235,2.92858499,63673.0,63672.0,0.002913]
[1721319902020,2.87116078,63673.0,63672.0,0.002913]
[1721319902205,2.92820782,63673.0,63672.0,0.002913]
[1721319902418,2.78896351,63673.0,63672.0,0.002913]
[1721319903020,2.47485951,63673.0,63672.0,0.002913]
[1721319903221,2.42485951,63673.0,63672.0,0.002913]
[1721319903453,2.47485951,63673.0,63672.0,0.002913]
[1721319903659,2.78896351,63673.0,63672.0,0.002913]
[1721319904063,2.88097445,63673.0,63672.0,0.002913]
[1721319904467,3.02021876,63673.0,63672.0,0.002913]
[1721319904764,2.88097445,63673.0,63672.0,0.002913]
[1721319904977,2.42485951,63673.0,63672.0,0.002913]
[1721319905117,2.4249644,63673.0,63672.0,0.002913]
[1721319905425,2.4749644,63673.0,63672.0,0.002913]
[1721319905648,2.4249644,63673.0,63672.0,0.002913]
[1721319905844,2.4749644,63673.0,63672.0,0.002913]
[1721319906053,2.4249644,63673.0,63672.0,0.002913]
[1721319906520,2.4749644,63673.0,63672.0,0.002913]
[1721319906723,2.88140322,63673.0,63672.0,0.002913]
[1721319907137,1.295269,63667.0,63666.0,0.00091363]
[1721319907354,2.25183295,63667.0,63666.0,0.00091363]
[1721319907581,2.35183295,63667.0,63666.0,0.00091363]
[1721319908423,2.21049562,63667.0,63666.0,0.00191363]
[1721319908613,2.36060326,63667.0,63666.0,0.00191363]
[1721319908934,2.36860326,63667.0,63666.0,0.00291363]
[1721319909357,2.68273726,63667.0,63666.0,6.3e-07]
[1721319909558,2.71973726,63667.0,63666.0,6.3e-07]
[1721319910004,2.70573726,63667.0,63666.0,6.3e-07]
[1721319910442,2.70573726,63667.0,63647.0,0.00712111]
[1721319910443,0.207079,63662.0,63661.0,8.3e-07]
[1721319910643,1.11550426,63662.0,63661.0,8.3e-07]
[1721319910865,2.05798126,63662.0,63661.0,8.3e-07]
[1721319911058,2.37214026,63662.0,63661.0,8.3e-07]
[1721319911241,2.68629926,63662.0,63661.0,8.3e-07]
[1721319911826,2.75722171,63662.0,63661.0,8.3e-07]
[1721319912019,2.70182376,63662.0,63661.0,8.3e-07]
[1721319912220,2.37300023,63662.0,63661.0,8.3e-07]
[1721319912428,2.50050893,63662.0,63661.0,8.3e-07]
[1721319913268,2.51450893,63662.0,63661.0,8.3e-07]
[1721319915414,2.58987362,63662.0,63661.0,8.3e-07]
[1721319915614,3.44372973,63662.0,63661.0,8.3e-07]
[1721319916573,3.42972973,63662.0,63661.0,8.3e-07]
[1721319916957,3.44372973,63662.0,63661.0,8.3e-07]
[1721319918626,3.29119162,63662.0,63661.0,8.3e-07]
[1721319918803,2.092124,63659.0,63658.0,9.7e-07]
[1721319919010,2.68854494,63659.0,63658.0,9.7e-07]
[1721319920426,2.79833288,63659.0,63658.0,9.7e-07]
[1721319920639,3.17954494,63659.0,63658.0,9.7e-07]
[1721319921234,3.3091617,63659.0,63658.0,9.7e-07]
[1721319921440,0.207099,63654.0,63653.0,0.00938753]
[1721319921653,1.28835512,63654.0,63653.0,0.00938753]
[1721319921849,2.023801,63654.0,63653.0,0.00938753]
[1721319922004,2.67087684,63654.0,63653.0,0.00938753]
[1721319922655,2.69887684,63654.0,63653.0,0.00938753]
[1721319923189,2.92587684,63654.0,63653.0,0.00938753]
[1721319923386,3.01851717,63654.0,63653.0,0.00938753]
[1721319923589,2.92587684,63654.0,63653.0,0.00938753]
[1721319923995,3.01851717,63654.0,63653.0,0.00938753]
[1721319924192,2.99541729,63654.0,63653.0,0.00938753]
[1721319924393,2.92587684,63654.0,63653.0,0.00938753]
[1721319924800,3.01898345,63654.0,63653.0,0.00938753]
[1721319925218,2.92624213,63654.0,63653.0,0.00938753]
[1721319925860,1.649763,63650.0,63649.0,1e-08]
[1721319926083,1.649763,63650.0,63647.0,0.00712111]
[1721319926084,0.207114,63648.0,63647.0,1.2e-07]
[1721319926399,1.964134,63643.0,63642.0,3.3e-07]
[1721319926584,3.16219313,63643.0,63642.0,3.3e-07]
[1721319926807,1.149934,63640.0,63639.0,0.00713742]
[1721319926919,2.21520567,63640.0,63639.0,0.00713742]
[1721319927123,2.21520567,63640.0,63631.0,0.009163]
[1721319927124,0.05,63635.0,63631.0,0.009163]
[1721319927434,1.676698,63619.0,63608.0,0.0138538]
[1721319927632,2.46677851,63619.0,63608.0,0.0138538]
[1721319927984,2.61674213,63619.0,63608.0,0.0138538]
[1721319928161,2.71103679,63619.0,63608.0,0.0138538]
[1721319928356,2.61674213,63619.0,63608.0,0.0138538]
[1721319928593,2.63974213,63619.0,63608.0,0.0138538]
[1721319928789,2.64974213,63619.0,63608.0,0.0138538]
[1721319928998,2.7440318,63619.0,63608.0,0.0138538]
[1721319929199,2.64974213,63619.0,63608.0,0.0138538]
[1721319929601,2.74403482,63619.0,63608.0,0.0138538]
[1721319929849,3.06740582,63619.0,63608.0,0.0138538]
[1721319930256,2.65874213,63619.0,63608.0,0.0138538]
[1721319930456,2.64874213,63619.0,63608.0,0.0138538]
[1721319930657,2.66274213,63619.0,63608.0,0.0138538]
[1721319931099,2.26662762,63619.0,63608.0,0.0138538]
[1721319931303,2.65486158,63619.0,63608.0,0.0138538]
[1721319931532,2.63186158,63619.0,63608.0,0.0138538]
[1721319931983,2.64586158,63619.0,63608.0,0.0138538]
[1721319932495,2.65486158,63619.0,63618.0,4.7e-07]
[1721319933445,1.779095,63617.0,63616.0,0.0077265]
[1721319933693,2.1163397,63617.0,63616.0,0.0077265]
[1721319933942,2.5933397,63617.0,63616.0,0.0077265]
[1721319934445,2.59337178,63617.0,63616.0,0.0077265]
[1721319935144,2.60737178,63617.0,63616.0,0.0077265]
[1721319935418,2.61637178,63617.0,63616.0,0.0077265]
[1721319935627,2.71177178,63617.0,63616.0,0.0077265]
[1721319936051,2.72577178,63617.0,63616.0,0.0077265]
[1721319936486,2.76949602,63617.0,63616.0,0.0077265]
[1721319936698,2.72577178,63617.0,63616.0,0.0077265]
[1721319937236,2.66462081,63617.0,63616.0,0.0077265]
[1721319937865,2.60689657,63617.0,63616.0,0.0077265]
[1721319938275,2.62089657,63617.0,63616.0,0.0077265]
[1721319939076,2.63489657,63617.0,63616.0,0.0077265]
[1721319939483,2.62089657,63617.0,63616.0,0.0077265]
[1721319939881,2.94927757,63617.0,63616.0,5e-07]
[1721319940106,1.856578,63614.0,63613.0,8.7e-07]
[1721319940309,0.70721,63609.0,63608.0,1e-07]
[1721319940542,2.41161581,63609.0,63608.0,1e-07]
[1721319940742,2.78295826,63609.0,63608.0,1e-07]
[1721319940966,3.09737826,63609.0,63608.0,1e-07]
[1721319941368,3.17947826,63609.0,63608.0,1e-07]
[1721319942033,3.19347826,63609.0,63608.0,1e-07]
[1721319942239,0.05,63604.0,63603.0,5e-07]
[1721319942446,0.74277298,63604.0,63603.0,5e-07]
[1721319942683,1.80245026,63604.0,63603.0,5e-07]
[1721319942896,1.90245026,63604.0,63603.0,5e-07]
[1721319943095,2.53134026,63604.0,63603.0,5e-07]
[1721319943512,2.53123984,63604.0,63603.0,5e-07]
[1721319943712,2.54523984,63604.0,63603.0,5e-07]
[1721319943934,2.5015156,63604.0,63603.0,5e-07]
[1721319944148,2.44459315,63604.0,63603.0,5e-07]
[1721319944544,2.43059315,63604.0,63603.0,5e-07]
[1721319944773,2.44459315,63604.0,63603.0,5e-07]
[1721319945481,2.45859315,63604.0,63603.0,5e-07]
[1721319946528,2.45845508,63604.0,63603.0,5e-07]
[1721319947926,2.62793253,63604.0,63603.0,5e-07]
[1721319948135,2.57101008,63604.0,63603.0,5e-07]
[1721319948553,2.25656508,63604.0,63603.0,5e-07]
[1721319948758,2.24256508,63604.0,63603.0,5e-07]
[1721319949097,2.25656508,63604.0,63603.0,5e-07]
[1721319949539,2.19738374,63604.0,63603.0,5e-07]
[1721319949761,2.25602859,63604.0,63603.0,5e-07]
[1721319949962,2.30603167,63604.0,63603.0,5e-07]
[1721319950611,2.64347667,63604.0,63603.0,5e-07]
[1721319951167,2.2559498,63604.0,63603.0,5e-07]
[1721319951871,2.2419498,63604.0,63603.0,5e-07]
[1721319953024,2.3188485,63604.0,63603.0,5e-07]
[1721319953296,2.3828485,63604.0,63603.0,5e-07]
[1721319954111,2.3548485,63604.0,63603.0,5e-07]
[1721319954402,2.3048485,63604.0,63603.0,5e-07]
[1721319954615,2.3408485,63604.0,63603.0,5e-07]
[1721319954790,2.2908485,63604.0,63603.0,5e-07]
[1721319955041,2.3104485,63604.0,63603.0,5e-07]
[1721319955925,2.3244485,63604.0,63603.0,5e-07]
[1721319956129,2.3241063,63604.0,63603.0,5e-07]
[1721319956336,2.3101063,63604.0,63603.0,5e-07]
[1721319956744,2.3381063,63604.0,63603.0,5e-07]
[1721319956943,2.3101063,63604.0,63603.0,5e-07]
[1721319957359,2.3241063,63604.0,63603.0,5e-07]
[1721319958000,2.3101063,63604.0,63603.0,5e-07]
[1721319958191,2.2474063,63604.0,63603.0,5e-07]
[1721319958330,2.3114063,63604.0,63603.0,5e-07]
[1721319958532,2.49225509,63604.0,63603.0,5e-07]
[1721319959209,2.80693379,63604.0,63603.0,5e-07]
[1721319959546,2.82993379,63604.0,63603.0,5e-07]
[1721319959746,2.75693379,63604.0,63603.0,5e-07]
[1721319960627,2.49248879,63604.0,63603.0,5e-07]
[1721319961219,2.80693379,63604.0,63603.0,5e-07]
[1721319961417,2.82867107,63604.0,63603.0,5e-07]
[1721319961625,2.82367107,63604.0,63603.0,5e-07]
[1721319963549,2.43622607,63604.0,63603.0,5e-07]
[1721319964623,2.438313,63604.0,63603.0,5e-07]
[1721319965231,1.623868,63604.0,63603.0,5e-07]
[1721319965431,1.5618542,63604.0,63603.0,5e-07]
[1721319965881,1.8762992,63604.0,63603.0,5e-07]
[1721319966608,2.2407442,63604.0,63603.0,5e-07]